bitfinex-derivatives/quotes_ETHF0:USTF0_20251013
["timestamp","ask_amount","ask_price","bid_price","bid_amount"]
[1760333601275,0.78274,4137.5,4137.4,0.55570613]
[1760333601481,0.89154,4137.5,4137.4,0.55570613]
[1760333601976,0.89154,4137.5,4137.4,0.33540613]
[1760333602371,0.89154,4137.5,4137.4,0.00200613]
[1760333603372,3.2078,4138.2,4137.6,0.3334]
[1760333603570,3.81646,4138.2,4138.1,0.7677]
[1760333603875,3.64246,4138.2,4138.1,0.7677]
[1760333604277,3.2078,4138.2,4138.1,0.7677]
[1760333609370,3.3818,4138.2,4138.1,0.7677]
[1760333610270,3.5558,4138.2,4138.1,0.5537]
[1760333610676,3.5558,4138.2,4138.1,0.7677]
[1760333611873,3.5558,4138.2,4137.5,0.1311]
[1760333611874,0.1728,4137.6,4137.5,0.5531]
[1760333612179,0.60753,4137.6,4137.5,0.5531]
[1760333612678,0.60753,4137.6,4137.5,0.8901]
[1760333613578,0.43473,4137.6,4137.5,0.8901]
[1760333613881,0.88833,4137.6,4137.5,0.4681]
[1760333614082,0.78033,4137.6,4137.5,0.4681]
[1760333614270,1.38977924,4137.6,4137.5,0.4681]
[1760333614475,1.38977924,4137.6,4137.5,0.6799]
[1760333614674,1.49777924,4137.6,4137.5,0.4681]
[1760333615379,1.49777924,4137.6,4137.4,0.00200613]
[1760333615380,0.108,4137.5,4137.4,0.00200613]
[1760333615580,1.06304924,4137.5,4137.4,0.33900613]
[1760333617184,1.06304924,4137.5,4137.4,0.00200613]
[1760333617382,0.3456,4136.7,4136.6,0.337]
[1760333617574,0.78047,4136.2,4136.1,0.5488]
[1760333617774,0.4536,4135.9,4135.8,0.337]
[1760333618081,0.88854,4135.6,4135.5,3.6731]
[1760333618385,0.89035666,4135.6,4135.5,3.67515308]
[1760333618779,1.50017641,4135.6,4135.5,3.67515308]
[1760333619175,1.50017641,4135.6,4135.5,3.20985308]
[1760333620079,1.50017641,4135.6,4134.7,0.038]
[1760333620080,0.78062,4134.8,4134.7,0.375]
[1760333621175,0.88862,4134.8,4134.7,0.37695806]
[1760333621777,0.78062,4134.8,4134.7,0.58875806]
[1760333621978,0.78062,4134.8,4134.7,0.37695806]
[1760333622179,0.88862,4134.8,4134.7,0.37695806]
[1760333623589,0.78062,4134.8,4134.7,0.79895806]
[1760333623798,0.78062,4134.8,4134.7,0.58875806]
[1760333623997,7.25398454,4134.8,4134.7,0.03995806]
[1760333624398,0.78069,4134.1,4134.0,0.4653]
[1760333624595,1.08764,4134.5,4133.0,0.1283]
[1760333624596,0.78074,4133.7,4133.6,0.337]
[1760333624788,0.3456,4133.7,4133.6,0.5488]
[1760333625402,0.3456,4133.7,4133.6,0.551005]
[1760333625598,3.2078,4134.3,4133.6,0.761205]
[1760333625803,0.3456,4134.1,4134.0,0.8873]
[1760333627104,0.3456,4134.1,4133.6,0.543005]
[1760333627105,0.3506,4133.7,4133.6,0.543005]
[1760333627599,0.3506,4133.7,4133.6,0.764605]
[1760333627798,0.3506,4133.7,4133.6,0.543005]
[1760333627996,0.4602,4133.7,4133.6,0.315705]
[1760333628504,0.3506,4133.7,4133.6,0.543005]
[1760333630005,0.4595,4133.7,4133.6,0.315705]
[1760333630303,0.4595,4133.7,4133.6,0.002205]
[1760333630906,3.6156791,4133.7,4132.7,3.2078]
[1760333631102,0.4481,4132.9,4132.8,0.36819667]
[1760333631706,0.3414,4132.9,4132.8,0.59459667]
[1760333631897,0.3414,4132.9,4132.8,0.59750645]
[1760333632099,0.3414,4132.9,4132.8,0.81650645]
[1760333633104,0.4481,4132.9,4132.8,0.02710645]
[1760333633996,0.4481,4132.9,4132.8,0.59750645]
[1760333633997,0.3414,4132.9,4132.8,0.59750645]
[1760333634604,0.3414,4132.9,4132.8,0.81650645]
[1760333634905,3.3145,4133.3,4133.2,0.7894]
[1760333634906,3.3785,4133.3,4133.2,0.7894]
[1760333635107,3.5492,4133.3,4133.2,0.7894]
[1760333635512,3.6559,4133.3,4133.2,0.344]
[1760333635908,0.3414,4133.1,4133.0,0.1279]
[1760333636213,0.3414,4133.1,4133.0,0.4719]
[1760333636704,0.3414,4133.1,4133.0,0.6983]
[1760333638807,0.3414,4133.1,4132.8,0.02710645]
[1760333638808,0.4481,4132.9,4132.8,0.02710645]
[1760333639207,3.52384962,4132.9,4132.8,0.02710645]
[1760333641914,0.2546,4132.0,4131.6,3.2078]
[1760333642115,0.3342,4131.8,4131.7,0.344]
[1760333642412,0.2546,4131.8,4131.7,0.7894]
[1760333643011,0.25707131,4131.8,4131.7,0.79225587]
[1760333643409,0.33667131,4131.8,4131.7,0.00285587]
[1760333643616,3.54447131,4131.8,4131.7,0.00285587]
[1760333644011,0.2456,4130.7,4130.6,0.344]
[1760333644206,0.68105,4130.7,4130.6,0.344]
[1760333644516,0.75775,4130.7,4130.6,0.344]
[1760333644713,0.75775,4130.7,4130.5,0.1279]
[1760333644916,0.2456,4130.3,4130.2,0.5704]
[1760333645314,0.2456,4130.3,4130.2,0.57213234]
[1760333645813,0.68109,4130.3,4130.2,0.00173234]
[1760333646020,3.93991694,4130.3,4130.2,0.00173234]
[1760333648422,3.42772694,4130.3,4130.2,0.34573234]
[1760333648718,0.3223,4130.3,4130.2,0.34573234]
[1760333649620,0.2456,4130.3,4130.2,0.34573234]
[1760333650211,0.3223,4130.3,4130.2,0.34573234]
[1760333651014,0.3223,4130.3,4130.2,0.00173234]
[1760333652818,0.2456,4130.3,4130.2,0.34573234]
[1760333653523,0.2456,4130.3,4130.2,0.79113234]
[1760333653915,0.2456,4130.3,4130.2,0.00173234]
[1760333653916,0.3223,4130.3,4130.2,0.00173234]
[1760333654820,0.3223,4130.3,4130.2,0.34573234]
[1760333655028,0.2456,4130.3,4130.2,0.57213234]
[1760333656723,0.2456,4130.3,4130.2,0.79113234]
[1760333659325,0.3226,4130.3,4130.2,0.34573234]
[1760333659527,0.2456,4130.3,4130.2,0.56723234]
[1760333660026,0.3226,4130.3,4130.2,0.34573234]
[1760333660228,0.2456,4130.3,4130.2,0.34573234]
[1760333660431,0.2456,4130.3,4130.2,0.56723234]
[1760333660826,0.3226,4130.3,4130.2,0.00173234]
[1760333662133,4.06429634,4130.3,4130.2,0.00173234]
[1760333662630,0.2466,4129.6,4129.2,0.3139]
[1760333662823,0.3236,4129.1,4129.0,0.4418]
[1760333663428,0.2466,4129.1,4129.0,0.6633]
[1760333663627,0.1233,4129.1,4129.0,0.8885686]
[1760333663931,0.68218,4129.5,4129.4,0.3139]
[1760333664125,0.75918,4129.5,4129.4,0.3139]
[1760333664534,0.68218,4129.5,4129.4,0.5354]
[1760333664937,0.68218,4129.5,4129.4,0.3139]
[1760333665434,1.29098382,4129.5,4129.4,0.3139]
[1760333666843,1.36798382,4129.5,4129.4,0.3139]
[1760333667433,0.1233,4129.5,4129.4,3.9662]
[1760333667731,0.2466,4129.5,4129.4,3.9662]
[1760333668232,0.85618054,4129.5,4129.4,3.9662]
[1760333668940,0.85618054,4129.5,4129.4,3.7432]
[1760333670230,0.85618054,4129.5,4129.4,3.9662]
[1760333672844,0.60958054,4129.5,4129.4,3.9662]
[1760333673036,0.85618054,4129.5,4129.4,3.7432]
[1760333674740,0.85618054,4129.5,4129.4,3.9662]
[1760333676940,0.85618054,4129.5,4129.4,3.7432]
[1760333677741,0.93318054,4129.5,4129.4,0.3139]
[1760333678343,0.2466,4129.5,4129.4,0.5354]
[1760333679537,3.2078,4129.9,4129.4,0.7584]
[1760333679744,1.29367199,4129.8,4129.7,0.97245]
[1760333679945,1.37067199,4129.8,4129.7,0.74945]
[1760333681147,1.37067199,4129.8,4129.7,0.3139]
[1760333681646,0.85812199,4129.8,4129.7,0.5354]
[1760333682141,0.077,4129.7,4129.2,0.3139]
[1760333682452,0.2466,4129.3,4129.2,1.19401]
[1760333682744,0.2466,4129.7,4129.6,0.97097]
[1760333682948,0.85816569,4129.7,4129.6,0.5354]
[1760333683840,1.37072569,4129.7,4129.4,0.43558]
[1760333684041,0.3236,4129.5,4129.4,0.74948]
[1760333685348,0.3236,4129.5,4129.2,0.4356]
[1760333685649,0.246,4129.3,4129.2,0.7671]
[1760333686049,0.246,4129.3,4129.2,0.9869]
[1760333686752,0.246,4129.3,4129.2,1.2101]
[1760333689253,0.246,4129.3,4129.2,0.7671]
[1760333689551,0.3229,4129.3,4129.2,0.7671]
[1760333689743,0.246,4129.3,4129.2,0.9962]
[1760333690647,0.1231,4129.8,4129.7,0.2291]
[1760333690849,0.2462,4129.8,4129.7,0.5706]
[1760333691247,0.85866542,4129.8,4129.7,0.5706]
[1760333691443,0.2462,4129.8,4129.7,0.5706]
[1760333691860,0.2462,4129.8,4129.7,0.3415]
[1760333692056,0.3231,4129.8,4129.7,0.3415]
[1760333692255,0.93566085,4129.8,4129.7,0.3415]
[1760333692457,0.3231,4129.8,4129.7,0.3415]
[1760333693446,0.2462,4129.8,4129.7,0.7938]
[1760333693652,0.1231,4129.8,4129.7,0.7938]
[1760333693858,0.2462,4129.8,4129.7,0.7938]
[1760333694561,0.1231,4129.8,4129.7,0.7938]
[1760333694752,3.454,4130.5,4130.4,0.5706]
[1760333694959,4.06650054,4130.5,4130.4,0.5706]
[1760333695151,3.454,4130.5,4130.4,0.5706]
[1760333696260,3.5309,4130.5,4130.4,0.3415]
[1760333698164,0.3231,4129.9,4129.8,0.3415]
[1760333699466,0.2462,4129.9,4129.8,0.7938]
[1760333700058,0.3231,4129.9,4129.8,0.3415]
[1760333700260,0.0769,4129.5,4129.2,4.93504519]
[1760333700456,0.2462,4129.4,4129.3,1.00619]
[1760333700768,0.2462,4129.4,4129.3,1.22939]
[1760333701065,0.3231,4129.4,4129.3,0.3415]
[1760333701568,0.75872,4129.1,4129.0,1.72951379]
[1760333701764,0.75872,4129.1,4129.0,0.0022686]
[1760333702069,3.86189301,4129.1,4129.0,0.0022686]
[1760333702265,3.86189301,4129.1,4128.2,1.72724519]
[1760333702266,0.3231,4128.3,4128.2,1.72724519]
[1760333702567,0.3231,4128.3,4128.2,0.3415]
[1760333702767,0.3231,4128.1,4128.0,0.4736]
[1760333702967,0.2462,4128.1,4128.0,0.9259]
[1760333703167,0.24836022,4128.1,4128.0,0.92902157]
[1760333703760,0.00216022,4128.1,4128.0,0.92902157]
[1760333703956,0.12526022,4128.1,4128.0,0.92902157]
[1760333704162,0.00216022,4128.1,4128.0,0.92902157]
[1760333704471,0.00216022,4128.1,4128.0,2.63828661]
[1760333704665,3.3309,4129.0,4128.9,0.43564]
[1760333704872,3.2078,4129.0,4128.9,1.22944]
[1760333705064,0.1231,4129.1,4129.0,0.5844]
[1760333705264,0.1231,4129.1,4129.0,0.9259]
[1760333705766,0.00171949,4129.1,4129.0,0.9259]
[1760333705973,3.2078,4129.5,4129.4,1.22939]
[1760333706267,3.3309,4130.1,4130.0,0.9259]
[1760333706574,3.5309,4130.1,4130.0,0.4736]
[1760333707178,3.5309,4130.1,4129.5,0.1321]
[1760333707179,3.5309,4130.1,4129.5,0.90917]
[1760333707369,3.53403269,4130.1,4129.5,0.90917]
[1760333707672,0.1231,4129.7,4129.6,1.22936]
[1760333708575,0.1231,4129.7,4129.6,0.3415]
[1760333708576,0.3231,4129.7,4129.6,0.3415]
[1760333709076,3.45713269,4130.1,4130.0,0.9259]
[1760333709276,3.33403269,4130.1,4130.0,0.9259]
[1760333709576,3.21093269,4130.1,4130.0,0.9259]
[1760333710574,3.45713269,4130.1,4130.0,0.9259]
[1760333711576,0.1231,4129.7,4129.6,0.5706]
[1760333711879,0.2462,4129.7,4129.6,0.5706]
[1760333712082,0.2462,4129.7,4129.6,0.3415]
[1760333712282,0.3231,4129.7,4129.6,0.3415]
[1760333712478,0.2462,4129.3,4129.2,0.5706]
[1760333712679,0.3231,4129.1,4129.0,0.4736]
[1760333712984,0.75873,4129.0,4128.9,3.2078]
[1760333713376,4.29677,4129.5,4128.5,0.1321]
[1760333713377,0.68186,4128.7,4128.5,0.1321]
[1760333713572,0.3231,4128.4,4128.3,3.2078]
[1760333713777,0.3231,4128.4,4128.0,0.34462157]
[1760333713778,0.2462,4128.1,4128.0,0.34462157]
[1760333713988,0.2462,4128.1,4128.0,0.47672157]
[1760333714185,0.2462,4128.1,4128.0,0.70582157]
[1760333715979,0.3231,4128.1,4128.0,0.00312157]
[1760333716578,0.3231,4128.1,4128.0,0.33622157]
[1760333716775,3.39997198,4128.1,4128.0,0.33622157]
[1760333718384,3.39997198,4128.1,4128.0,0.00312157]
[1760333720083,3.39997198,4128.1,4128.0,0.46432157]
[1760333721088,3.32307198,4128.1,4128.0,0.69012157]
[1760333721290,0.2462,4128.1,4128.0,0.92102157]
[1760333721989,0.1231,4128.1,4128.0,0.92102157]
[1760333722185,0.2459,4128.1,4128.0,0.46432157]
[1760333722390,0.3227,4128.1,4128.0,0.00312157]
[1760333722689,0.3227,4128.1,4128.0,0.33622157]
[1760333722890,0.2459,4128.1,4128.0,0.69012157]
[1760333723283,0.2459,4128.1,4128.0,0.92102157]
[1760333724085,3.3306,4128.5,4128.4,0.7898]
[1760333724381,3.4534,4128.5,4128.4,0.7898]
[1760333724781,3.4534,4128.5,4128.4,0.5589]
[1760333725287,3.5302,4128.5,4128.4,0.3331]
[1760333725689,3.4534,4128.5,4128.4,0.3331]
[1760333725888,3.4534,4128.5,4128.4,0.5589]
[1760333726192,3.5302,4128.5,4128.4,0.3331]
[1760333727488,3.4534,4128.5,4128.4,0.3331]
[1760333727786,0.43569,4128.4,4128.0,0.13122157]
[1760333727988,2.09974351,4128.1,4128.0,0.00312157]
[1760333729390,2.02294351,4128.1,4128.0,0.69012157]
[1760333729591,0.2456,4128.1,4128.0,0.92102157]
[1760333730491,3.3306,4128.5,4128.4,0.7898]
[1760333730991,3.3306,4128.5,4128.3,0.4357]
[1760333730992,0.2456,4128.1,4128.0,0.00312157]
[1760333731191,1.66401351,4128.1,4128.0,0.00312157]
[1760333731694,0.2456,4128.1,4128.0,0.69012157]
[1760333734196,0.1228,4128.1,4128.0,0.92102157]
[1760333734390,0.1228,4128.1,4128.0,1.35676157]
[1760333734690,0.68133,4128.1,4128.0,0.69012157]
[1760333734885,0.75813,4128.1,4128.0,0.00312157]
[1760333735084,0.75813,4128.1,4128.0,0.33622157]
[1760333735488,0.68133,4128.1,4128.0,0.46432157]
[1760333735790,0.68133,4128.1,4128.0,0.69012157]
[1760333737495,0.75813,4128.1,4128.0,0.46432157]
[1760333737797,7.0895155,4128.1,4128.0,0.00312157]
[1760333740007,3.4534,4128.1,4128.0,0.92102157]
[1760333740396,6.63867698,4128.1,4128.0,0.00312157]
[1760333743300,6.56187698,4128.1,4128.0,0.69012157]
[1760333743493,6.56187698,4128.1,4128.0,0.92102157]
[1760333743494,3.4534,4128.1,4128.0,0.92102157]
[1760333743806,4.87181351,4128.1,4128.0,0.00312157]
[1760333745003,8.05867167,4128.1,4128.0,0.00312157]
[1760333745303,8.66749367,4128.1,4128.0,0.00312157]
[1760333746401,8.05867167,4128.1,4128.0,0.00312157]
[1760333751608,8.05867167,4128.1,4128.0,0.33722157]
[1760333752308,6.64025816,4128.1,4128.0,0.70592157]
[1760333752613,3.4534,4128.1,4128.0,0.93312157]
[1760333752809,3.3306,4128.1,4128.0,0.93312157]
[1760333753010,3.3312,4128.1,4128.0,0.93312157]
[1760333753207,3.4546,4128.1,4128.0,0.93312157]
[1760333753406,0.2468,4128.1,4128.0,0.93312157]
[1760333758617,1.66561351,4128.1,4128.0,0.00312157]
[1760333758810,4.87341351,4128.1,4128.0,0.00312157]
[1760333759309,8.05967679,4128.1,4128.0,0.00312157]
[1760333761409,8.67066739,4128.1,4128.0,0.00312157]
[1760333767216,8.67066739,4128.1,4128.0,0.93312157]
[1760333767217,3.4546,4128.1,4128.0,0.93312157]
[1760333767413,3.3312,4128.1,4128.0,0.93312157]
[1760333768010,3.4546,4128.1,4128.0,0.93312157]
[1760333768619,3.3312,4128.1,4128.0,0.93312157]
[1760333768817,3.4546,4128.1,4128.0,0.93312157]
[1760333769616,3.2078,4128.7,4128.6,0.792]
[1760333770612,0.43562,4129.2,4129.1,1.22762]
[1760333770613,3.2078,4129.2,4129.1,1.22762]
[1760333770810,3.89014,4129.9,4129.8,0.5648]
[1760333771009,4.50061955,4129.9,4129.8,0.5648]
[1760333771220,3.89014,4129.9,4129.8,0.5648]
[1760333771527,5.23175351,4129.9,4129.8,0.5648]
[1760333772023,0.2468,4129.1,4129.0,0.7028]
[1760333772811,0.2468,4129.1,4129.0,0.4721]
[1760333773123,0.324,4129.0,4128.9,3.5419]
[1760333773325,0.324,4129.0,4128.9,0.3341]
[1760333773918,3.3312,4129.4,4129.3,0.2307]
[1760333774113,3.3312,4129.4,4129.0,0.90773]
[1760333774114,0.2468,4129.2,4129.1,0.5648]
[1760333775325,0.324,4129.2,4129.1,0.3341]
[1760333775921,0.2468,4129.2,4129.1,0.3341]
[1760333776120,0.2468,4129.2,4129.1,0.5648]
[1760333776823,0.2468,4129.2,4129.1,0.792]
[1760333777924,4.54941351,4129.4,4129.3,0.764]
[1760333777925,3.2078,4129.4,4129.3,0.764]
[1760333778824,0.43555,4129.8,4129.7,0.5459]
[1760333778825,0.68095,4129.8,4129.7,0.5459]
[1760333779123,0.2454,4129.8,4129.7,0.5459]
[1760333780823,1.41098,4129.8,4129.0,0.138]
[1760333781124,1.58701351,4129.2,4129.1,0.5459]
[1760333781722,0.2454,4129.2,4129.1,0.5459]
[1760333783122,0.2454,4129.2,4129.1,0.764]
[1760333783912,3.2078,4129.4,4129.3,0.764]
[1760333784117,3.4532,4129.4,4129.3,0.764]
[1760333784922,3.4532,4129.4,4129.3,0.5459]
[1760333789023,1.08877,4130.2,4129.8,0.448]
[1760333789024,3.76604,4129.9,4129.8,0.448]
[1760333789226,3.88874,4129.9,4129.8,0.764]
[1760333789921,3.4532,4129.9,4129.8,0.764]
[1760333790725,3.4532,4129.9,4129.8,0.5459]
[1760333790923,3.4532,4129.9,4129.2,3.4377]
[1760333790924,0.2454,4129.3,4129.2,3.4377]
[1760333791123,0.2454,4129.3,4129.2,0.2299]
[1760333791323,0.2454,4129.3,4129.2,0.764]
[1760333792826,0.2454,4129.3,4129.2,0.5459]
[1760333793029,0.3221,4129.3,4129.2,0.316]
[1760333793221,3.2078,4129.4,4129.3,0.316]
[1760333793422,3.2078,4129.4,4129.3,0.764]
[1760333793631,3.3305,4129.4,4129.3,0.764]
[1760333795327,3.4532,4129.4,4129.3,0.764]
[1760333795826,3.2078,4129.4,4129.3,0.764]
[1760333796236,3.3305,4129.4,4129.3,0.764]
[1760333797633,0.1227,4129.4,4129.3,0.764]
[1760333797930,0.43556,4129.7,4129.6,0.764]
[1760333798130,3.2078,4129.9,4129.7,0.316]
[1760333798131,0.43555,4129.8,4129.7,0.316]
[1760333798329,0.43555,4129.8,4129.7,0.764]
[1760333798532,0.55825,4129.8,4129.7,0.764]
[1760333798928,3.2078,4129.9,4129.8,1.19955]
[1760333802439,3.3305,4129.9,4129.8,0.764]
[1760333803430,3.3305,4129.9,4129.4,0.316]
[1760333803431,0.63498,4129.5,4129.4,0.316]
[1760333803633,0.7577,4129.3,4129.2,0.316]
[1760333804536,0.681,4129.3,4129.2,0.316]
[1760333804731,0.2454,4129.3,4129.2,0.7563]
[1760333804933,0.2454,4129.3,4129.2,0.5612]
[1760333805627,0.2454,4129.3,4128.9,0.336]
[1760333805628,0.0771,4129.2,4128.9,0.336]
[1760333805829,0.3237,4129.0,4128.9,0.336]
[1760333806024,4.87194961,4129.1,4128.5,0.474]
[1760333806233,0.2466,4128.6,4128.5,0.474]
[1760333806937,0.247,4128.2,4128.1,0.5626]
[1760333807132,0.4357,4128.4,4128.2,0.5626]
[1760333807436,0.4357,4128.4,4128.3,0.5626]
[1760333808132,0.4357,4128.4,4128.0,0.43885157]
[1760333808336,0.43572,4128.2,4128.0,0.00312157]
[1760333808930,0.43574,4128.0,4127.8,0.02422598]
[1760333809133,4.9177752,4127.9,4127.8,0.02422598]
[1760333809441,8.09540612,4127.9,4127.8,0.02422598]
[1760333809937,8.09540612,4127.9,4127.8,0.02638422]
[1760333811936,8.09540612,4127.9,4127.8,0.36418422]
[1760333814449,8.09540612,4127.9,4127.8,0.02638422]
[1760333816342,6.38543092,4127.9,4127.8,0.02638422]
[1760333817440,6.38543092,4127.9,4127.8,0.36418422]
[1760333819347,6.42759748,4127.9,4127.8,0.02638422]
[1760333820742,6.42759748,4127.9,4127.8,0.36418422]
[1760333820947,6.42759748,4127.9,4127.8,0.02638422]
[1760333821338,6.42759748,4127.9,4127.8,0.36418422]
[1760333823343,6.42759748,4127.9,4127.8,0.58898422]
[1760333823542,6.38543092,4127.9,4127.8,0.58898422]
[1760333823945,3.2078,4127.9,4127.8,0.80558422]
[1760333824346,3.2078,4128.5,4128.4,1.21489]
[1760333824544,3.2078,4129.0,4128.6,0.2248]
[1760333824749,3.20966107,4128.9,4128.8,0.3378]
[1760333825049,3.2078,4129.0,4128.9,0.7792]
[1760333825852,3.2078,4129.6,4129.5,0.6965]
[1760333826047,2.05745745,4131.2,4129.5,1.34868]
[1760333826253,3.21093269,4130.1,4130.0,0.6883]
[1760333826443,3.21093269,4130.1,4130.0,0.4717]
[1760333826651,3.21093269,4130.1,4130.0,0.9131]
[1760333827243,3.2078,4131.4,4130.6,0.7792]
[1760333827444,3.2078,4131.4,4131.1,0.7792]
[1760333827644,0.43535,4131.7,4131.5,0.1339]
[1760333827847,3.2078,4131.8,4131.5,0.1339]
[1760333828145,3.17256357,4131.7,4131.6,0.3378]
[1760333830443,3.20983543,4131.8,4131.7,0.7792]
[1760333830648,0.00203543,4131.8,4131.7,0.7792]
[1760333831453,0.00203543,4131.8,4131.7,0.3378]
[1760333831653,0.43536,4131.7,4131.5,0.00218127]
[1760333832054,0.43536,4131.7,4131.6,0.3378]
[1760333832259,3.20983543,4131.8,4131.6,0.3378]
[1760333832452,3.10321115,4131.7,4131.6,0.3378]
[1760333833851,3.20983543,4131.8,4131.7,1.21455]
[1760333834551,0.00203543,4131.8,4131.7,1.21455]
[1760333836250,0.00203543,4131.8,4131.6,3.2078]
[1760333836251,3.15430403,4131.8,4131.6,0.3378]
[1760333836457,3.15430403,4131.8,4131.6,0.3131]
[1760333836856,3.58964403,4131.8,4131.6,0.3131]
[1760333837057,3.58964403,4131.8,4131.5,0.13608127]
[1760333837258,0.43535,4131.7,4131.5,0.44918127]
[1760333837754,0.43535,4131.7,4131.6,0.3131]
[1760333838161,3.15430403,4131.8,4131.6,0.3131]
[1760333838356,3.58964403,4131.8,4131.5,0.13608127]
[1760333838666,3.15430403,4131.8,4131.6,0.3131]
[1760333838858,3.15430403,4131.8,4131.7,0.3131]
[1760333840559,3.58964403,4131.8,4131.5,0.44918127]
[1760333841061,0.43535,4131.7,4131.5,0.00218127]
[1760333841276,3.2078,4131.6,4131.5,0.00218127]
[1760333841555,6.41402511,4131.6,4131.5,0.00218127]
[1760333841756,6.41402511,4131.6,4131.5,0.31528127]
[1760333841963,6.41402511,4131.6,4131.5,0.44478127]
[1760333843966,6.41402511,4131.6,4131.5,0.13168127]
[1760333844256,6.41402511,4131.6,4131.5,0.44478127]
[1760333845055,3.2078,4131.6,4131.5,0.88528127]
[1760333845458,3.2078,4131.6,4131.5,0.66928127]
[1760333846960,3.2078,4131.6,4131.5,0.44478127]
[1760333847662,3.2078,4131.6,4131.5,0.66928127]
[1760333848360,3.2078,4131.6,4131.5,0.88528127]
[1760333851858,3.2078,4131.6,4131.5,0.66928127]
[1760333852860,3.2078,4131.6,4131.5,0.88528127]
[1760333853460,3.2078,4131.6,4131.5,0.44478127]
[1760333853952,3.2078,4131.6,4131.5,0.00218127]
[1760333853953,6.33795859,4131.6,4131.5,0.00218127]
[1760333854263,6.94727517,4131.6,4131.5,0.00218127]
[1760333855058,6.94727517,4131.6,4131.5,0.13168127]
[1760333855262,6.94727517,4131.6,4131.5,0.44478127]
[1760333855767,3.2078,4131.6,4131.5,0.88528127]
[1760333856264,3.8186159,4131.6,4131.5,0.44478127]
[1760333856855,3.8186159,4131.6,4131.5,0.00218127]
[1760333857060,7.02728827,4131.6,4131.5,0.00218127]
[1760333857868,7.89383039,4131.6,4131.5,0.00218127]
[1760333861267,7.02728827,4131.6,4131.5,0.00218127]
[1760333861469,8.98225039,4131.6,4130.8,0.3131]
[1760333861663,0.43543,4131.0,4130.5,3.77717]
[1760333861870,0.43546,4130.7,4130.5,0.1339]
[1760333862163,0.6107066,4130.6,4130.5,0.1339]
[1760333862366,3.70585591,4130.6,4130.5,0.1339]
[1760333862560,3.70585591,4130.6,4130.5,0.44554588]
[1760333863366,0.6107066,4130.6,4130.5,0.88604588]
[1760333864171,0.6107066,4130.6,4130.5,0.44554588]
[1760333864371,0.6107066,4130.6,4130.5,0.13244588]
[1760333864666,0.6107066,4130.6,4130.5,0.90884588]
[1760333864874,0.6107066,4130.6,4130.5,0.68184588]
[1760333865371,0.6107066,4130.6,4130.5,0.90884588]
[1760333865570,3.2078,4130.9,4130.6,0.77026]
[1760333865773,40.8,4131.2,4130.7,0.7764]
[1760333865774,0.61008892,4130.8,4130.7,0.7764]
[1760333866070,0.43545,4130.7,4130.5,0.00294588]
[1760333866271,0.43545,4130.7,4130.6,0.3382]
[1760333866473,1.04541984,4130.7,4130.6,0.3382]
[1760333866660,4.23007157,4130.7,4130.6,0.3382]
[1760333866866,4.23007157,4130.7,4130.5,0.12914588]
[1760333867065,3.62010173,4130.7,4130.5,0.46734588]
[1760333867566,0.60990419,4130.6,4130.5,0.00294588]
[1760333867979,3.17333316,4130.6,4130.5,0.46784588]
[1760333869572,3.78315975,4130.6,4130.5,0.46784588]
[1760333870275,3.2078,4130.9,4130.6,0.3382]
[1760333870276,3.64323,4130.9,4130.6,0.3382]
[1760333870471,3.64323,4130.9,4130.6,0.2183]
[1760333870674,3.64323,4130.9,4130.6,0.3382]
[1760333870869,3.64323,4130.9,4130.5,0.56511588]
[1760333871171,3.64323,4130.9,4130.6,0.2183]
[1760333871373,3.64323,4130.9,4130.6,0.3382]
[1760333871775,3.64323,4130.9,4130.6,0.5565]
[1760333871970,3.2078,4130.9,4130.7,0.5565]
[1760333872178,3.2078,4130.9,4130.5,0.12964588]
[1760333872179,3.2078,4131.4,4131.0,0.1267]
[1760333872373,3.2078,4131.4,4131.3,0.5565]
[1760333872569,3.2078,4131.4,4131.3,0.7731]
[1760333874575,3.2078,4131.4,4131.3,0.3382]
[1760333875277,3.2078,4131.4,4131.3,0.5565]
[1760333875482,3.2078,4131.4,4131.3,0.7731]
[1760333877577,3.2078,4131.4,4131.3,0.3382]
[1760333877775,0.43541,4131.1,4131.0,0.4649]
[1760333880677,0.43539,4131.3,4131.0,0.1267]
[1760333880875,3.64318,4131.4,4131.2,0.2183]
[1760333881076,3.13416638,4131.3,4131.2,0.2183]
[1760333881281,3.2078,4131.4,4131.3,0.3382]
[1760333881476,3.2078,4131.4,4131.3,1.20849]
[1760333881675,0.00203543,4131.8,4131.7,0.2183]
[1760333881876,0.00203543,4131.8,4131.7,0.7731]
[1760333882580,3.2078,4132.5,4132.4,0.7731]
[1760333882880,3.2078,4132.5,4132.4,2.547814]
[1760333883084,3.2078,4132.5,4132.4,2.112544]
[1760333883278,3.2078,4132.5,4132.4,0.5565]
[1760333883583,3.20978794,4132.5,4132.4,0.5565]
[1760333884689,3.20978794,4132.5,4132.4,0.7731]
[1760333884882,0.00198794,4132.5,4132.4,0.7731]
[1760333888386,0.00198794,4132.5,4132.0,0.1267]
[1760333888387,0.4353,4132.1,4132.0,0.1267]
[1760333888687,0.43532,4132.0,4131.7,3.4261]
[1760333888890,6.40800137,4132.5,4131.7,3.4261]
[1760333888891,0.4353,4132.2,4132.1,0.2183]
[1760333889187,0.4353,4132.2,4132.1,0.5565]
[1760333889591,0.43527,4132.4,4132.1,0.4349]
[1760333889789,0.43527,4132.4,4132.2,0.3382]
[1760333889990,0.43529,4132.3,4132.2,0.2183]
[1760333890189,0.43529,4132.3,4132.2,0.5565]
[1760333890987,0.4353,4132.1,4132.0,0.4649]
[1760333891195,0.43533,4131.9,4131.7,3.2078]
[1760333891389,0.43535,4131.7,4131.6,0.3382]
[1760333891990,0.43532,4132.0,4131.6,0.3382]
[1760333892292,0.43533,4131.9,4131.8,0.2183]
[1760333892492,0.43533,4131.9,4131.8,0.5565]
[1760333892690,0.43531,4132.1,4132.0,0.1267]